bitfinex/quotes_SOLUSD_20240613
["timestamp","ask_amount","ask_price","bid_price","bid_amount"]
[1718321737362,8.5,147.66,147.6,16.3109]
[1718321737665,8.5,147.66,147.65,7.75]
[1718321740577,8.5,147.68,147.65,52.75]
[1718321740785,15.1407,147.7,147.67,7.75]
[1718321740947,15.1407,147.7,147.69,7.75]
[1718321741154,9.343394,147.71,147.69,7.75]
[1718321744888,9.343394,147.71,147.64,0.34]
[1718321745087,9.343394,147.71,147.68,7.75]
[1718321753292,9.343394,147.71,147.69,7.75]
[1718321753468,9.343394,147.71,147.7,7.75]
[1718321754376,9.343394,147.71,147.69,7.75]
[1718321756192,9.343394,147.71,147.68,7.75]
[1718321756493,9.343394,147.71,147.64,15.6212]
[1718321756688,9.343394,147.71,147.68,7.75]
[1718321756884,9.343394,147.71,147.64,15.6212]
[1718321757088,9.343394,147.71,147.67,7.75]
[1718321757286,9.343394,147.71,147.65,45.0]
[1718321757474,9.343394,147.71,147.67,7.75]
[1718321757874,9.343394,147.71,147.65,45.0]
[1718321758074,9.343394,147.71,147.67,7.75]
[1718321758598,8.5,147.68,147.67,7.75]
[1718321758807,8.5,147.68,147.64,0.17]
[1718321759102,8.5,147.66,147.64,7.75]
[1718321760595,8.5,147.66,147.65,7.75]
[1718321761501,8.5,147.68,147.65,7.75]
[1718321761681,8.5,147.68,147.66,7.75]
[1718321763481,8.5,147.66,147.6,21.56622745]
[1718321763680,8.5,147.66,147.64,7.75]
[1718321763891,8.5,147.66,147.61,45.51]
[1718321764374,8.5,147.66,147.64,7.75]
[1718321767391,8.5,147.66,147.63,7.75]
[1718321769305,8.5,147.66,147.64,7.75]
[1718321772285,8.5,147.66,147.65,7.75]
[1718321776788,8.5,147.68,147.65,7.75]
[1718321777091,8.5,147.68,147.67,7.75]
[1718321778812,8.5,147.7,147.67,7.75]
[1718321778994,8.5,147.7,147.68,7.75]
[1718321779600,8.5,147.7,147.69,7.75]
[1718321780304,8.5,147.7,147.69,52.75]
[1718321785810,8.5,147.7,147.69,45.0]
[1718321786016,8.5,147.7,147.69,52.75]
[1718321793026,8.5,147.7,147.69,7.75]
[1718321793232,0.843394,147.71,147.66,0.17]
[1718321793526,0.843394,147.71,147.7,7.75]
[1718321795013,0.843394,147.71,147.66,20.0]
[1718321795331,0.843394,147.71,147.7,7.75]
[1718321795908,0.843394,147.71,147.65,16.0594]
[1718321796109,0.843394,147.71,147.7,7.75]
[1718321799210,0.843394,147.71,147.65,16.0594]
[1718321799539,0.843394,147.71,147.7,7.75]
[1718321800216,0.843394,147.71,147.66,45.68]
[1718321800423,0.843394,147.71,147.7,7.75]
[1718321801143,0.843394,147.71,147.66,45.68]
[1718321801444,0.843394,147.71,147.66,45.17]
[1718321801627,8.5,147.7,147.66,45.0]
[1718321802029,8.5,147.7,147.67,7.75]
[1718321803212,8.5,147.7,147.63,31.0]
[1718321803418,8.5,147.7,147.67,7.75]
[1718321804263,8.5,147.68,147.64,45.17]
[1718321804425,8.5,147.68,147.67,7.75]
[1718321804741,8.5,147.68,147.66,7.75]
[1718321806720,8.5,147.68,147.67,7.75]
[1718321806926,8.5,147.7,147.67,7.75]
[1718321807134,8.5,147.7,147.68,7.75]
[1718321807921,8.5,147.7,147.69,7.75]
[1718321809436,0.843394,147.71,147.69,7.75]
[1718321809642,0.843394,147.71,147.7,7.75]
[1718321810647,0.843394,147.71,147.66,0.17]
[1718321810949,0.843394,147.71,147.7,7.75]
[1718321813956,0.843394,147.71,147.66,65.51]
[1718321814134,8.5,147.7,147.68,7.75]
[1718321814536,8.5,147.7,147.66,45.34]
[1718321814741,8.5,147.7,147.68,7.75]
[1718321815664,8.5,147.7,147.66,45.34]
[1718321815837,8.5,147.7,147.68,7.75]
[1718321819299,8.5,147.7,147.66,45.34]
[1718321819488,8.5,147.7,147.69,7.75]
[1718321819684,8.5,147.7,147.66,45.34]
[1718321819975,8.5,147.7,147.69,7.75]
[1718321822859,8.5,147.7,147.66,45.34]
[1718321823076,8.5,147.7,147.69,7.75]
[1718321823279,8.5,147.7,147.66,45.34]
[1718321823657,8.5,147.7,147.68,7.75]
[1718321824552,8.5,147.7,147.66,45.0]
[1718321825282,8.5,147.7,147.67,7.75]
[1718321825858,8.5,147.7,147.66,45.0]
[1718321826478,8.5,147.7,147.67,7.75]
[1718321827355,8.5,147.7,147.66,45.0]
[1718321827555,8.5,147.68,147.63,31.0]
[1718321827784,8.5,147.68,147.67,7.75]
[1718321828368,8.5,147.68,147.66,7.75]
[1718321829280,8.5,147.65,147.58,7.61961147]
[1718321829505,8.5,147.63,147.61,7.75]
[1718321829789,8.5,147.63,147.56,53.4897]
[1718321829959,8.5,147.63,147.6,7.75]
[1718321830556,8.5,147.63,147.59,7.75]
[1718321830987,8.5,147.61,147.59,7.75]
[1718321832398,8.5,147.61,147.57,7.75]
[1718321832612,8.5,147.59,147.49,16.095]
[1718321832771,8.5,147.59,147.49,47.095]
[1718321833090,8.5,147.59,147.55,7.75]
[1718321835588,8.5,147.59,147.56,7.75]
[1718321838707,8.5,147.57,147.56,7.75]
[1718321838916,8.5,147.57,147.55,7.75]
[1718321839405,8.5,147.57,147.54,7.75]
[1718321839585,8.5,147.55,147.49,52.58736411]
[1718321839789,8.5,147.55,147.5,20.0]
[1718321840311,8.5,147.57,147.53,7.75]
[1718321840687,8.5,147.57,147.5,20.0]
[1718321840887,8.5,147.57,147.53,7.75]
[1718321842011,8.5,147.57,147.54,7.75]
[1718321845286,8.5,147.57,147.56,7.75]
[1718321846397,8.5,147.57,147.55,7.75]
[1718321857631,8.5,147.57,147.51,45.34]
[1718321857931,8.5,147.57,147.55,7.75]
[1718321859897,8.5,147.59,147.56,7.75]
[1718321860101,8.5,147.59,147.58,7.75]
[1718321871133,8.5,147.59,147.57,7.75]
[1718321873755,8.5,147.59,147.56,7.75]
[1718321873925,8.5,147.59,147.55,7.75]
[1718321874331,8.5,147.59,147.52,20.17]
[1718321874532,8.5,147.57,147.49,47.1581]
[1718321874751,8.5,147.57,147.49,16.1581]
[1718321874940,8.5,147.57,147.53,7.75]
[1718321877342,8.5,147.57,147.54,7.75]
[1718321877766,8.5,147.57,147.5,0.17]
[1718321877941,8.5,147.57,147.54,7.75]
[1718321878263,8.5,147.57,147.55,7.75]
[1718321880547,8.5,147.57,147.54,7.75]
[1718321882442,8.5,147.55,147.54,7.75]
[1718321882863,8.5,147.55,147.5,65.51]
[1718321883064,8.5,147.55,147.45,35.9626]
[1718321883270,8.5,147.55,147.51,7.75]
[1718321883877,8.5,147.53,147.5,7.75]
[1718321884046,8.5,147.55,147.51,7.75]
[1718321884372,8.5,147.53,147.51,7.75]
[1718321885066,8.5,147.53,147.52,7.75]
[1718321886374,8.5,147.53,147.47,0.17]
[1718321886550,8.5,147.53,147.51,7.75]
[1718321888187,8.5,147.53,147.47,0.68]
[1718321888384,8.5,147.53,147.51,7.75]
[1718321888590,8.5,147.53,147.47,0.68]
[1718321888792,8.5,147.53,147.51,7.75]
[1718321889585,8.5,147.53,147.47,0.51]
[1718321889780,8.5,147.53,147.5,7.75]
[1718321889988,8.5,147.53,147.51,7.75]
[1718321890760,8.5,147.53,147.47,0.51]
[1718321891060,8.5,147.53,147.51,7.75]
[1718321892267,8.5,147.53,147.52,7.75]
[1718321892886,8.5,147.53,147.47,45.51]
[1718321893087,8.5,147.53,147.5,7.75]
[1718321894382,8.5,147.53,147.47,45.51]
[1718321894589,8.5,147.53,147.5,7.75]
[1718321894775,8.5,147.53,147.51,7.75]
[1718321894975,8.5,147.53,147.5,7.75]
[1718321897382,8.5,147.51,147.49,7.75]
[1718321897764,8.5,147.51,147.47,0.17]
[1718321897988,8.5,147.51,147.49,7.75]
[1718321901364,8.5,147.51,147.5,7.75]
[1718321908802,8.5,147.51,147.46,45.0]
[1718321909386,8.5,147.51,147.48,7.75]
[1718321909698,8.5,147.51,147.46,45.0]
[1718321909880,8.5,147.51,147.48,7.75]
[1718321910079,8.5,147.51,147.46,45.0]
[1718321910296,8.5,147.51,147.48,7.75]
[1718321910687,8.5,147.51,147.46,45.0]
[1718321910898,8.5,147.51,147.48,7.75]
[1718321911402,8.5,147.49,147.42,5.40635064]
[1718321911603,8.5,147.49,147.45,7.75]
[1718321912185,8.5,147.49,147.41,16.5858]
[1718321912504,8.5,147.49,147.45,7.75]
[1718321914708,8.5,147.49,147.42,20.0]
[1718321914894,8.5,147.47,147.45,7.75]
[1718321915210,8.5,147.47,147.44,7.75]
[1718321915410,8.5,147.47,147.43,7.75]
[1718321915894,8.5,147.47,147.38,5.5000634]
[1718321916083,16.25,147.47,147.37,22.7628]
[1718321916281,16.25,147.47,147.42,7.75]
[1718321916487,16.25,147.47,147.41,7.75]
[1718321916791,16.25,147.47,147.42,7.75]
[1718321917888,8.5,147.45,147.42,7.75]
[1718321918284,8.5,147.45,147.38,0.17]
[1718321918533,8.5,147.45,147.38,65.68]
[1718321918696,8.5,147.45,147.4,7.75]
[1718321919030,16.25,147.45,147.4,7.75]
[1718321919188,8.5,147.43,147.38,7.75]
[1718321920290,8.5,147.43,147.35,36.39806233]
[1718321920585,8.5,147.43,147.38,7.75]
[1718321921022,8.5,147.41,147.38,7.75]
[1718321921508,8.5,147.41,147.36,65.17]
[1718321921708,8.5,147.41,147.36,65.0]
[1718321921915,8.5,147.41,147.38,7.75]
[1718321922495,8.5,147.41,147.37,7.75]
[1718321924212,8.5,147.41,147.36,65.0]
[1718321924518,8.5,147.41,147.37,7.75]
[1718321925923,14.7902,147.43,147.36,65.0]
[1718321926112,14.7902,147.43,147.4,7.75]
[1718321926323,14.7902,147.43,147.37,0.17]
[1718321926629,14.7902,147.43,147.39,7.75]
[1718321930700,14.7902,147.43,147.36,65.0]
[1718321930914,22.5402,147.43,147.38,7.75]
[1718321932511,8.5,147.41,147.38,7.75]
[1718321932827,8.5,147.41,147.36,45.0]
[1718321933018,8.5,147.41,147.37,7.75]
[1718321933625,8.5,147.41,147.35,45.0]
[1718321933924,8.5,147.41,147.34,0.17]
[1718321933925,8.5,147.39,147.36,7.75]
[1718321934234,8.5,147.39,147.31,15.6438]
[1718321934712,31.939,147.39,147.31,0.2]
[1718321934919,31.939,147.39,147.34,7.75]
[1718321935602,31.939,147.39,147.31,0.2]
[1718321935802,24.189,147.39,147.34,7.75]
[1718321936812,6.2359,147.38,147.31,5.68458362]
[1718321937101,6.2359,147.38,147.33,7.75]
[1718321940733,8.5,147.37,147.31,0.2]
[1718321940938,7.75,147.36,147.31,7.95]
[1718321941141,8.5,147.37,147.31,7.95]
[1718321941311,16.25,147.37,147.31,7.95]
[1718321941906,16.25,147.37,147.32,7.75]
[1718321942107,8.5,147.35,147.32,7.75]
[1718321942414,8.5,147.35,147.31,0.2]
[1718321942730,8.5,147.35,147.31,7.95]
[1718321943320,8.5,147.35,147.32,7.75]
[1718321943843,8.5,147.35,147.31,0.2]
[1718321944164,8.5,147.35,147.32,7.75]
[1718321944823,8.5,147.37,147.34,7.75]
[1718321945026,8.5,147.37,147.31,0.2]
[1718321945027,8.5,147.37,147.35,7.75]
[1718321945406,8.5,147.37,147.36,7.75]
[1718321945611,8.5,147.37,147.35,7.75]
[1718321946742,8.5,147.37,147.31,0.2]
[1718321947412,8.5,147.37,147.34,7.75]
[1718321948362,8.5,147.37,147.35,7.75]
[1718321951361,8.5,147.37,147.36,7.75]
[1718321951729,8.5,147.4,147.36,7.75]
[1718321952031,8.5,147.4,147.31,0.2]
[1718321952032,8.5,147.4,147.38,7.75]
[1718321952455,8.5,147.4,147.32,15.5555]
[1718321952638,8.5,147.4,147.36,7.75]
[1718321956639,8.5,147.4,147.33,45.51]
[1718321956856,8.5,147.4,147.36,7.75]
[1718321959948,8.5,147.4,147.38,7.75]
[1718321961060,14.8685,147.42,147.39,7.75]
[1718321961262,8.5,147.42,147.39,7.75]
[1718321961441,8.5,147.42,147.4,7.75]
[1718321964360,8.5,147.42,147.39,7.75]
[1718321966374,8.5,147.42,147.36,0.17]
[1718321966552,8.5,147.42,147.36,65.68]
[1718321966973,8.5,147.4,147.31,26.0221018]
[1718321967267,8.5,147.4,147.32,20.0]
[1718321967467,8.5,147.4,147.36,7.75]
[1718321969143,8.5,147.42,147.35,7.75]
[1718321969346,8.5,147.42,147.39,7.75]
[1718321972447,8.5,147.4,147.36,45.0]
[1718321972672,23.6578,147.43,147.28,31.0]
[1718321972673,8.5,147.38,147.31,0.2]
[1718321972882,8.5,147.36,147.31,0.2]
[1718321973084,8.5,147.36,147.33,7.75]
[1718321973311,15.864,147.37,147.33,7.75]
[1718321973771,15.864,147.37,147.31,0.2]
[1718321973982,15.864,147.37,147.33,7.75]
[1718321975615,15.864,147.37,147.34,7.75]
[1718321976114,15.864,147.37,147.31,0.2]
[1718321976318,8.5,147.36,147.33,7.75]
[1718321977587,8.5,147.34,147.33,7.75]
[1718321977913,8.5,147.32,147.31,0.2]
[1718321978081,8.5,147.34,147.31,0.2]
[1718321978883,8.5,147.34,147.31,7.95]
[1718321979287,8.5,147.34,147.31,0.2]
[1718321979493,8.5,147.34,147.32,7.75]
[1718321980304,8.5,147.34,147.31,0.2]
[1718321980693,8.5,147.34,147.31,7.95]
[1718321981508,8.5,147.34,147.31,0.2]
[1718321981709,8.5,147.34,147.31,7.95]
[1718321982205,8.5,147.34,147.31,0.2]
[1718321982411,8.5,147.34,147.31,7.95]
[1718321982587,8.5,147.34,147.31,0.2]
[1718321983811,16.25,147.34,147.31,0.2]
[1718321984412,8.5,147.34,147.31,0.2]
[1718321988437,7.75,147.33,147.31,0.2]
[1718321988720,16.25,147.34,147.31,0.2]
[1718321989115,8.5,147.32,147.31,0.2]
[1718321991413,8.5,147.34,147.31,0.2]
[1718321994704,8.5,147.34,147.31,7.95]
[1718321995396,8.5,147.34,147.31,0.2]
[1718321995626,8.5,147.34,147.31,7.95]
[1718321999422,8.5,147.34,147.31,0.2]
[1718322000414,8.5,147.32,147.31,0.2]
[1718322002612,16.25,147.32,147.31,0.2]
[1718322005596,8.5,147.32,147.31,0.2]
[1718322006412,16.25,147.32,147.31,0.2]
[1718322007511,8.5,147.32,147.31,0.2]
[1718322007914,8.5,147.34,147.31,0.2]
[1718322008396,7.75,147.33,147.31,0.2]
[1718322008601,7.75,147.32,147.31,0.2]
[1718322009294,16.25,147.32,147.31,0.2]
[1718322009604,36.42,147.32,147.31,0.2]
[1718322011412,51.8377,147.32,147.31,0.2]
[1718322015030,97.0077,147.32,147.31,0.2]
[1718322016826,51.6677,147.32,147.31,0.2]
[1718322017735,8.5,147.32,147.31,0.2]
[1718322017936,28.5,147.32,147.31,0.2]
[1718322018617,8.5,147.32,147.31,0.2]
[1718322024453,8.5,147.34,147.31,0.2]
[1718322025462,16.25,147.34,147.31,0.2]
[1718322028343,8.5,147.34,147.31,0.2]
[1718322029241,8.5,147.34,147.31,7.95]
[1718322029853,8.5,147.34,147.31,0.2]
[1718322030218,100.0,147.37,147.31,0.2]
[1718322030219,8.5,147.32,147.31,0.2]
[1718322038832,8.5,147.32,147.31,7.95]
[1718322039239,8.5,147.32,147.31,0.2]
[1718322040541,8.5,147.32,147.31,7.95]
[1718322044029,8.5,147.34,147.31,7.95]
[1718322049365,8.5,147.34,147.31,0.2]
[1718322049553,8.5,147.34,147.33,7.75]
[1718322050037,8.5,147.36,147.33,7.75]
[1718322051772,8.5,147.36,147.34,7.75]
[1718322056368,8.5,147.36,147.31,0.2]
[1718322056564,8.5,147.36,147.33,7.75]
[1718322057072,8.5,147.34,147.33,7.75]
[1718322065609,7.75,147.4,147.33,8.09]
[1718322065610,8.5,147.4,147.33,8.09]
[1718322065901,8.5,147.4,147.38,7.75]
[1718322066263,8.5,147.42,147.39,7.75]
[1718322066465,8.5,147.42,147.36,0.17]
[1718322066802,8.5,147.42,147.4,7.75]
[1718322067163,8.5,147.42,147.37,0.17]
[1718322067417,8.5,147.42,147.41,7.75]
[1718322067693,8.5,147.44,147.41,7.75]
[1718322067885,8.5,147.44,147.43,7.75]
[1718322068084,25.0382,147.46,147.43,7.75]
[1718322069382,8.5,147.46,147.43,7.75]
[1718322070591,8.5,147.44,147.43,7.75]
[1718322073092,8.5,147.44,147.42,7.75]
[1718322075008,8.5,147.44,147.43,7.75]
[1718322076502,22.8335,147.52,147.43,52.75]
[1718322076503,8.5,147.48,147.43,52.75]
[1718322076685,8.5,147.48,147.46,7.75]
[1718322077894,8.5,147.48,147.45,7.75]
[1718322079091,8.5,147.48,147.46,7.75]
[1718322081378,8.5,147.48,147.42,7.75]
[1718322081686,8.5,147.48,147.45,7.75]
[1718322083297,8.5,147.48,147.43,45.17]
[1718322083509,8.5,147.48,147.46,7.75]
[1718322084607,8.5,147.48,147.43,45.0]
[1718322084808,8.5,147.46,147.44,7.75]
[1718322084994,8.5,147.46,147.41,16.3085]
[1718322084995,8.5,147.46,147.41,15.9685]
[1718322085185,8.5,147.46,147.44,7.75]
[1718322086299,8.5,147.46,147.41,15.9685]
[1718322086497,8.5,147.46,147.44,7.75]
[1718322087408,8.5,147.46,147.43,7.75]
[1718322089390,8.5,147.46,147.44,7.75]
[1718322091187,8.5,147.46,147.45,7.75]
[1718322093504,8.5,147.46,147.44,7.75]
[1718322095298,8.5,147.46,147.45,7.75]
[1718322103991,8.5,147.48,147.45,7.75]
[1718322104206,8.5,147.5,147.47,7.75]
[1718322104405,8.5,147.5,147.48,7.75]
[1718322115422,8.5,147.52,147.49,7.75]
[1718322115728,8.5,147.52,147.5,7.75]
[1718322116816,8.5,147.52,147.48,7.75]
[1718322120325,8.5,147.52,147.49,7.75]
[1718322121763,8.5,147.52,147.43,5.50673626]
[1718322121967,8.5,147.5,147.44,20.0]
[1718322122166,8.5,147.5,147.46,7.75]
[1718322122364,7.75,147.51,147.46,7.75]
[1718322122365,8.5,147.48,147.46,7.75]
[1718322127991,8.5,147.48,147.42,46.7521]
[1718322128175,8.5,147.48,147.39,5.29008067]
[1718322128496,16.25,147.48,147.38,15.739]
[1718322128681,8.5,147.48,147.44,7.75]
[1718322128878,8.5,147.48,147.45,7.75]
[1718322129089,15.1732,147.49,147.45,7.75]
[1718322129280,15.1732,147.49,147.46,7.75]
[1718322129972,15.1732,147.49,147.42,7.75]
[1718322130185,15.1732,147.49,147.43,45.0]
[1718322130571,8.5,147.52,147.48,7.75]
[1718322130766,8.5,147.52,147.49,45.0]
[1718322131398,8.5,147.52,147.5,7.75]
[1718322134877,8.5,147.52,147.49,45.0]
[1718322135194,8.5,147.52,147.5,7.75]
[1718322135983,8.5,147.52,147.45,0.17]
[1718322136189,8.5,147.52,147.48,7.75]
[1718322136386,8.5,147.52,147.44,22.1216]
[1718322136574,8.5,147.52,147.47,7.75]
[1718322139348,8.5,147.52,147.42,31.0]
[1718322139638,8.5,147.5,147.45,7.75]
[1718322141012,8.5,147.5,147.46,7.75]
[1718322141713,8.5,147.5,147.43,20.0]
[1718322141714,8.5,147.5,147.47,7.75]
[1718322144716,8.5,147.5,147.48,7.75]
[1718322145414,8.5,147.5,147.44,0.17]
[1718322145623,8.5,147.5,147.48,7.75]
[1718322147337,8.5,147.5,147.49,7.75]
[1718322149751,8.5,147.5,147.44,45.68]
[1718322149942,8.5,147.5,147.49,7.75]
[1718322151438,8.5,147.5,147.45,20.0]
[1718322151638,8.5,147.5,147.48,7.75]
[1718322153534,8.5,147.5,147.46,0.34]
[1718322153733,8.5,147.5,147.48,7.75]
[1718322154221,8.5,147.5,147.46,0.34]
[1718322154423,8.5,147.5,147.48,7.75]
[1718322158440,8.5,147.5,147.49,7.75]
[1718322159250,8.5,147.5,147.46,45.34]
[1718322159455,8.5,147.5,147.49,7.75]
[1718322165361,8.5,147.5,147.46,45.34]
[1718322165546,8.5,147.5,147.49,7.75]
[1718322170845,8.5,147.5,147.48,7.75]
[1718322175559,8.5,147.5,147.46,45.17]
[1718322175772,8.5,147.5,147.45,20.0]
[1718322176075,8.5,147.5,147.43,20.0]
[1718322176380,22.2933,147.5,147.44,7.75]
[1718322176684,8.5,147.48,147.44,7.75]
[1718322177245,8.5,147.46,147.44,7.75]
[1718322178551,8.5,147.46,147.41,16.6655]
[1718322178753,8.5,147.46,147.44,7.75]
[1718322180553,8.5,147.46,147.42,45.0]
[1718322180756,8.5,147.46,147.35,39.35306801]
[1718322180966,8.5,147.44,147.41,7.75]
[1718322181480,16.25,147.46,147.41,7.75]
[1718322181976,8.5,147.46,147.41,7.75]
[1718322182178,8.5,147.44,147.41,7.75]
[1718322182382,8.5,147.44,147.42,7.75]
[1718322182951,8.5,147.44,147.43,52.75]
[1718322187685,8.5,147.46,147.43,52.75]
[1718322187891,8.5,147.46,147.45,7.75]
[1718322189499,8.5,147.46,147.43,45.0]
[1718322193495,8.5,147.46,147.45,7.75]
[1718322194010,8.5,147.5,147.45,52.75]
[1718322194309,8.5,147.5,147.43,45.0]
[1718322194521,8.5,147.5,147.47,7.75]
[1718322194899,8.5,147.5,147.46,7.75]
[1718322195593,8.5,147.5,147.44,20.34]
[1718322195793,8.5,147.5,147.46,7.75]
[1718322196915,8.5,147.5,147.47,7.75]
[1718322198126,8.5,147.5,147.46,7.75]
[1718322198632,8.5,147.5,147.44,20.34]
[1718322198839,8.5,147.5,147.45,45.0]
[1718322199020,8.5,147.5,147.46,7.75]
[1718322199403,8.5,147.5,147.45,45.0]
[1718322199629,8.5,147.5,147.46,7.75]
[1718322201016,8.5,147.48,147.46,7.75]
[1718322201617,8.5,147.48,147.45,7.75]
[1718322201823,8.5,147.48,147.44,7.75]
[1718322202513,8.5,147.48,147.4,15.1513]
[1718322202713,8.5,147.48,147.44,7.75]
[1718322203329,8.5,147.46,147.44,7.75]
[1718322206817,8.5,147.46,147.41,45.0]
[1718322207015,8.5,147.46,147.43,7.75]
[1718322207554,8.5,147.46,147.42,7.75]
[1718322212142,8.5,147.46,147.43,7.75]
[1718322213765,8.5,147.46,147.45,7.75]
[1718322215334,8.5,147.49,147.45,7.75]
[1718322215631,8.5,147.49,147.47,7.75]
[1718322216937,8.5,147.49,147.42,31.34]
[1718322217256,8.5,147.49,147.43,65.34]
[1718322217432,8.5,147.49,147.44,0.17]
[1718322219659,8.5,147.49,147.44,0.34]
[1718322219841,8.5,147.49,147.47,7.75]
[1718322220341,8.5,147.49,147.48,7.75]
[1718322220841,8.5,147.51,147.48,7.75]
[1718322221060,8.5,147.51,147.5,7.75]
[1718322224064,8.5,147.51,147.49,7.75]
[1718322227375,8.5,147.51,147.5,7.75]
[1718322231364,8.5,147.55,147.5,7.75]
[1718322231577,8.5,147.55,147.52,7.75]
[1718322232353,8.5,147.55,147.49,7.75]
[1718322232561,8.5,147.55,147.52,7.75]
[1718322236368,8.5,147.55,147.5,45.0]
[1718322236889,8.5,147.53,147.48,0.51]
[1718322237064,8.5,147.53,147.5,7.75]
[1718322237597,8.5,147.51,147.43,30.30269555]
[1718322237766,8.5,147.51,147.43,21.6793]
[1718322237961,8.5,147.51,147.47,7.75]
[1718322241104,8.5,147.51,147.43,27.08057858]
[1718322241298,8.5,147.51,147.47,7.75]
[1718322241577,8.5,147.51,147.48,7.75]
[1718322242609,8.5,147.51,147.44,45.51]
[1718322243005,8.5,147.51,147.46,7.75]
[1718322243705,8.5,147.49,147.42,31.0]
[1718322243912,16.25,147.49,147.4,15.1669]
[1718322244081,16.25,147.49,147.43,7.75]
[1718322244286,8.5,147.46,147.43,7.75]
[1718322245580,8.5,147.46,147.44,7.75]
[1718322245979,8.5,147.46,147.41,0.17]
[1718322246206,8.5,147.46,147.44,7.75]
[1718322251123,8.5,147.46,147.41,45.68]
[1718322251616,8.5,147.46,147.43,7.75]
[1718322255920,8.5,147.46,147.42,7.75]
[1718322256103,8.5,147.46,147.41,45.34]
[1718322256291,8.5,147.46,147.4,45.0]
[1718322256617,8.5,147.44,147.41,7.75]
[1718322256806,8.5,147.44,147.4,45.0]
[1718322257120,8.5,147.44,147.41,7.75]
[1718322257722,8.5,147.44,147.4,45.0]
[1718322257920,8.5,147.44,147.41,7.75]
[1718322258433,8.5,147.46,147.43,7.75]
[1718322258637,8.5,147.46,147.44,7.75]